[Event "SixDays Budapest GM-B May 2024"]
[Site "Budapest"]
[Date "2024.05.18"]
[Round "4.1"]
[White "Jinan Jomon"]
[Black "Stefansson, Vignir Vatnar"]
[Result "0-1"]
[ECO "A13"]
[WhiteElo "2380"]
[BlackElo "2463"]
[Annotator "TA"]
[PlyCount "82"]
[EventDate "2024.05.15"]
[EventType "tourn"]
[EventCountry "HUN"]
[SourceTitle "playchess.com"]
[Source "ChessBase"]
[SourceQuality "1"]
[TimeControl "40/5400+30:1800+30"]

{[%evp 16,82,0,0,0,-27,0,0,54,53,67,51,92,77,66,75,107,67,52,54,64,72,72,58,127,120,121,79,108,101,168,168,190,190,185,180,173,168,168,31,26,15,24,-8,-5,-5,-5,-5,-5,-7,-8,-116,-126,-99,-129,-323,-314,-700,-692,-625,-539,-539,-539,-539,-518,-5587,-5473,-4937,-4587]} 1. c4 {[%emt 0:05:05]} e6 {[%emt 0:00:46]} 2. Nf3 {[%emt 0:00:56]} d5 {[%emt 0:00:15]} 3. e3 {[%emt 0:00:13]} Nf6 {[%emt 0:00:07]} 4. Nc3 {[%emt 0:00:17]} dxc4 {[%emt 0:00:07]} 5. Bxc4 {[%emt 0:00:10]} c5 {[%emt 0:00:06]} 6. d4 {[%emt 0:02:37]} a6 {[%emt 0:00:18]} 7. O-O {[%emt 0:00:23]} b5 {[%emt 0:00:03]} 8. Bb3 {[%emt 0:00:27]} Bb7 {[%emt 0:00:16]} 9. Qe2 {[%emt 0:06:47]} Qc7 {[%emt 0:13:24]} 10. dxc5 {[%emt 0:20:39]} Bxc5 {[%emt 0:09:02]} 11. e4 $1 {[%emt 0:02:26][%cal Be3e4,Be4e5][%mdl 32]} Nc6 {[%emt 0:03:07]} (11... O-O $11) 12. e5 $1 $14 {[%emt 0:03:26]} Nd7 {[%emt 0:00:49]} 13. Bf4 {[%emt 0:02:12]} Nd4 {[%emt 0:11:47]} 14. Nxd4 {[%emt 0:00:17]} Bxd4 {[%emt 0:00:05]} 15. Rfd1 $36 {[%emt 0:12:39][%mdl 2048] White is really pushing.} Qb6 {[%emt 0:15:54]} 16. Qd2 {[%emt 0:07:47]} Qc6 $1 {[%emt 0:00:28]} 17. Bd5 {[%emt 0:07:25]} (17. Qxd4 $2 Qxg2#) 17... Bxc3 {[%emt 0:00:08]} 18. Bxc6 {[%emt 0:00:07]} Bxd2 {[%emt 0:00:04]} 19. Bxb7 {[%emt 0:00:17]} Bxf4 {[%emt 0:07:16]} (19... Rb8 $14) 20. Bxa8 $16 {[%emt 0:00:20] [#] Bc6 is the strong threat.} Ke7 {[%emt 0:00:05]} 21. Be4 {[%emt 0:13:13]} Rc8 {[%emt 0:05:11]} 22. a4 {[%emt 0:03:38]} (22. Bxh7 $6 g6 $11) 22... Bxe5 {[%emt 0:05:20]} (22... bxa4 $16 23. Rxa4 Bxe5) 23. axb5 $18 {[%emt 0:00:23]} (23. Bxh7 $6 bxa4 (23... Bxb2 24. Ra2 $16) 24. Rxa4 g6 $11) 23... axb5 {[%emt 0:00:04]} 24. Ra7 $1 {[%emt 0:00:21]} (24. Bxh7 $6 g6 $14) 24... Bd6 {[%emt 0:00:11]} 25. b4 {[%emt 0:06:19]} (25. Bxh7 g6 $11) 25... Rc7 {[%emt 0:11:04]} ({But not} 25... Rc4 $2 26. Bd3 (26. Bxh7 Rc7 $18) 26... Rc7 (26... Rxb4 $2 27. Rb7 $18) 27. Rxc7 Bxc7 28. Bxb5 $18) 26. Rda1 {[%emt 0:01:40]} Rc4 {[%emt 0:04:53]} 27. Bxh7 {[%emt 0:03:15]} ({Better is} 27. Bf3 $18) 27... g6 $1 $14 {[%emt 0:01:05]} 28. Bg8 {[%emt 0:00:28][%cal Og8f7] Black must now prevent Bxf7!} Bc7 $1 {[%emt 0:00:57][%cal Oe7f8]} 29. Rb7 {[%emt 0:00:39]} (29. g3 $5) 29... Nf6 {[%emt 0:00:51]} 30. Bxf7 {[%emt 0:00:30]} Kxf7 {[%emt 0:00:05]} 31. Rxb5 {[%emt 0:00:13]} Nd5 {[%emt 0:00:05][%cal Oc7b6]} 32. g3 {[%emt 0:00:50]} Bb6 {[%emt 0:00:37][%cal Oc4c2] Prevents Ra7+.} 33. Rd1 {[%emt 0:00:30]} (33. Ra6 $11 Bd4 34. Rb7+ Kf6 35. Ra8) 33... Nc3 $17 {[%emt 0:01:32] Black is more active.} 34. Rd7+ {[%emt 0:00:28]} Ke8 {[%emt 0:00:04]} 35. Rd6 $2 {[%emt 0:00:29]} (35. Rxb6 $17 Kxd7 36. Rb7+ Kd6 37. Rg7) 35... Bxf2+ $19 {[%emt 0:00:38]} (35... Nxb5 36. Rxe6+ Kf7 37. Rxb6 Rxb4 38. Rb7+ Kf6 39. Rb6+ Kf5 40. h4 $11) 36. Kg2 $2 {[%emt 0:00:31]} (36. Kxf2 Ne4+ (36... Nxb5 37. Rxe6+ Kf7 38. Re2 $19) 37. Ke3 Nxd6 38. Rb6) 36... Nxb5 {[%emt 0:00:11] Black is clearly winning.} 37. Rxe6+ {[%emt 0:00:02]} Kf7 {[%emt 0:00:25]} 38. Re5 {[%emt 0:00:05] [#]} Bxg3 {[%emt 0:00:35]} 39. Kxg3 {[%emt 0:00:52]} Rxb4 {[%emt 0:00:05]} 40. h4 {[%emt 0:00:06]} (40. Re2 $142) 40... Nd6 {[%emt 0:00:12]} 41. h5 {[%emt 0:31:25]} Nf5+ {[%emt 0:30:09] Black used his chance.   Weighted Error Value: White=0.61/Black=0.16 (very precise) .  Loses game:     	White=1     	---        Mistake:       	White=4     	Black=3      Inaccurate:     	White=4     	Black=4      OK:         	White=10    	Black=7      Best:        	White=4     	Black=6      Strong:       	White=3     	Black=3} 0-1

[Event "SixDays Budapest GM-B May 2024"]
[Site "Budapest"]
[Date "2024.05.18"]
[Round "4.2"]
[White "Palczert, Matyas"]
[Black "Kuru, Atilla"]
[Result "1/2-1/2"]
[ECO "C10"]
[WhiteElo "2333"]
[BlackElo "2313"]
[Annotator "TA"]
[PlyCount "79"]
[EventDate "2024.05.15"]
[EventType "tourn"]
[EventCountry "HUN"]
[SourceTitle "playchess.com"]
[Source "ChessBase"]
[SourceQuality "1"]
[TimeControl "40/5400+30:1800+30"]

{[%evp 12,79,43,20,17,27,29,26,33,33,38,30,37,28,46,51,53,52,43,41,44,58,58,54,43,50,50,51,62,17,20,13,58,62,71,36,58,12,19,12,14,12,40,36,45,40,72,4,9,10,60,46,46,46,46,46,65,20,38,12,17,12,12,5,2,7,4,12,15,0]} 1. e4 {[%emt 0:00:07]} e6 {[%emt 0:08:34]} 2. d4 {[%emt 0:00:07]} d5 {[%emt 0:00:04]} 3. Nc3 {[%emt 0:00:09]} dxe4 {[%emt 0:00:09]} 4. Nxe4 {[%emt 0:00:12]} Nd7 {[%emt 0:00:03]} 5. Nf3 {[%emt 0:00:35]} Ngf6 {[%emt 0:00:06]} 6. Nxf6+ {[%emt 0:01:54]} Nxf6 {[%emt 0:00:06]} 7. g3 {[%emt 0:05:16]} b6 {[%emt 0:00:09]} 8. Bb5+ {[%emt 0:00:14]} Bd7 {[%emt 0:00:05]} 9. a4 {[%emt 0:00:18]} Bd6 {[%emt 0:01:20] White has an edge.} 10. O-O {[%emt 0:00:41]} a6 {[%emt 0:06:00]} 11. Be2 {[%emt 0:01:20]} Bc6 {[%emt 0:00:27]} 12. Ne5 {[%emt 0:00:51]} Bxe5 {[%emt 0:01:12]} 13. dxe5 {[%emt 0:00:08]} Qd5 {[%emt 0:00:04]} 14. Qxd5 {[%emt 0:00:12]} (14. exf6 $2 Qh1#) 14... Nxd5 {[%emt 0:00:02]} 15. a5 {[%emt 0:01:55]} b5 {[%emt 0:00:41][%cal Bb6b5,Bb5b4][%mdl 32]} 16. Bd2 {[%emt 0:06:53]} O-O {[%emt 0:00:29]} 17. b3 {[%emt 0:02:16]} b4 {[%emt 0:05:32]} 18. Rfd1 {[%emt 0:03:53]} Rfd8 {[%emt 0:01:44]} 19. Bc4 {[%emt 0:06:06]} Bb7 {[%emt 0:05:26]} 20. Bxd5 {[%emt 0:07:46]} Rxd5 {[%emt 0:00:31]} 21. Bxb4 {[%emt 0:01:04]} Rad8 {[%emt 0:03:12]} 22. Rxd5 {[%emt 0:02:50]} Rxd5 $14 {[%emt 0:00:09][%mdl 4096] Endgame. KRB-KRB} 23. Re1 {[%emt 0:00:23]} h5 {[%emt 0:00:20]} 24. Re3 {[%emt 0:03:22]} (24. f4 $14 {is more appropriate.}) 24... Rd1+ $11 {[%emt 0:05:11]} 25. Be1 {[%emt 0:00:23]} Rc1 {[%emt 0:00:59]} 26. c4 {[%emt 0:02:02]} Kf8 {[%emt 0:03:26]} 27. Kf1 {[%emt 0:01:17]} Rc2 {[%emt 0:00:04]} 28. Rd3 {[%emt 0:02:32]} Ke8 {[%emt 0:00:29]} 29. Bc3 {[%emt 0:10:50]} ({Better is} 29. Bd2 $16) 29... Be4 {[%emt 0:04:58]} 30. Re3 {[%emt 0:00:41]} Bc6 {[%emt 0:00:29]} ({Black should play} 30... Rc1+ $11 31. Ke2 Rc2+ 32. Kd1 Bf5) 31. Ke1 {[%emt 0:01:13]} g5 {[%emt 0:01:07][%cal Bg7g5,Bg5g4][%mdl 32]} 32. Bd2 {[%emt 0:01:45]} g4 {[%emt 0:01:29]} 33. Ke2 {[%emt 0:03:47]} Rb2 {[%emt 0:00:21]} 34. Kd1 {[%emt 0:05:45]} Ra2 {[%emt 0:03:14]} 35. Kc1 {[%emt 0:04:59]} Ra1+ $1 {[%emt 0:00:26] The position is equal.} 36. Kb2 {[%emt 0:00:11]} Rh1 {[%emt 0:00:14]} 37. Kc3 {[%emt 0:01:41]} Rxh2 {[%emt 0:00:36]} 38. Be1 {[%emt 0:00:06]} h4 {[%emt 0:00:30]} 39. gxh4 {[%emt 0:00:19]} Rxh4 {[%emt 0:00:07]} 40. Kb4 {[%emt 0:01:09] Weighted Error Value: White=0.12 (very precise) /Black=0.08 (flawless) .  Mistake:       	White=2     	Black=1      Inaccurate:     	White=4     	Black=3      OK:         	White=19    	Black=9      Best:        	---       	Black=2      Strong:       	---       	Black=1} 1/2-1/2

[Event "SixDays Budapest GM-B May 2024"]
[Site "Budapest"]
[Date "2024.05.18"]
[Round "4.3"]
[White "Krishnan, Ritvik"]
[Black "Fodor, Tamas Jr."]
[Result "0-1"]
[ECO "C50"]
[WhiteElo "2298"]
[BlackElo "2486"]
[Annotator "TA"]
[PlyCount "106"]
[EventDate "2024.05.15"]
[EventType "tourn"]
[EventCountry "HUN"]
[SourceTitle "playchess.com"]
[Source "ChessBase"]
[SourceQuality "1"]
[TimeControl "40/5400+30:1800+30"]

{[%evp 10,106,10,10,12,10,18,8,35,12,5,14,15,0,8,0,29,27,47,43,46,35,39,41,37,31,53,50,58,27,51,54,81,66,79,69,109,137,153,78,122,37,39,47,56,0,11,0,16,-3,0,-42,0,-41,-52,-160,7,5,0,0,4,8,22,0,0,0,0,-6,-6,-6,0,-6,-6,-7,0,0,11,-20,12,-11,24,24,47,18,26,18,18,0,18,18,41,43,47,-612,-635,-623,-597,-739,-586]} 1. e4 {[%emt 0:04:02]} e5 {[%emt 0:00:10]} 2. Nf3 {[%emt 0:00:10]} Nc6 {[%emt 0:00:11]} 3. Bc4 {[%emt 0:00:06]} Bc5 {[%emt 0:00:16]} 4. O-O {[%emt 0:00:07]} Nf6 {[%emt 0:00:39]} 5. d3 {[%emt 0:00:04]} d6 {[%emt 0:00:16]} 6. c3 {[%emt 0:00:04]} a5 {[%emt 0:00:15]} 7. Re1 {[%emt 0:00:08]} Ba7 {[%emt 0:00:32]} 8. Na3 {[%emt 0:06:17]} O-O {[%emt 0:00:40] The position is equal.} 9. Nb5 {[%emt 0:00:18]} Bb6 {[%emt 0:00:30]} 10. h3 {[%emt 0:12:52]} h6 {[%emt 0:04:31]} 11. Be3 {[%emt 0:13:48]} Bxe3 {[%emt 0:01:08]} 12. Rxe3 {[%emt 0:00:02]} Qe7 {[%emt 0:12:51]} 13. d4 {[%emt 0:01:43]} g6 {[%emt 0:02:35][%cal Bg7g6,Bg6g5][%mdl 32]} 14. a4 {[%emt 0:01:37]} Nh5 {[%emt 0:03:00]} 15. Kh2 {[%emt 0:03:19]} Nf4 {[%emt 0:02:06]} 16. Qd2 {[%emt 0:03:30]} Kg7 {[%emt 0:03:20]} 17. Rae1 {[%emt 0:01:32]} Nb8 {[%emt 0:03:41]} 18. Bf1 {[%emt 0:01:32]} g5 {[%emt 0:01:30]} 19. Ng1 {[%emt 0:02:41][%cal Bf3g1,Bg1e2,Be2g3,Bg3f5][%mdl 32]} f6 {[%emt 0:12:29]} 20. Ne2 {[%emt 0:07:30]} Kh7 {[%emt 0:05:36]} 21. Ng3 {[%emt 0:05:24]} Be6 {[%emt 0:08:16]} 22. Nf5 {[%emt 0:04:56]} Qd7 {[%emt 0:00:40]} 23. g3 {[%emt 0:00:43]} Nh5 {[%emt 0:03:32]} 24. Rf3 {[%emt 0:03:30]} ({Better is} 24. h4 $1) 24... Ng7 {[%emt 0:02:41]} 25. c4 {[%emt 0:03:26]} (25. dxe5 $16 {Strongly threatening Nxg7.} fxe5 26. h4) 25... Na6 $14 {[%emt 0:02:34]} 26. b3 {[%emt 0:02:18]} Nb4 {[%emt 0:00:34]} 27. Nxg7 {[%emt 0:03:45]} Kxg7 {[%emt 0:00:30]} 28. Rd1 {[%emt 0:01:20]} Qe7 {[%emt 0:04:06]} 29. Rc3 {[%emt 0:01:56]} Rad8 {[%emt 0:01:31]} 30. f4 {[%emt 0:04:08]} Bf7 {[%emt 0:03:04]} (30... exf4 $5 31. gxf4 c6 $14) 31. Re1 {[%emt 0:01:08]} Kh7 {[%emt 0:01:45]} 32. Be2 {[%emt 0:01:56]} (32. f5 $15) 32... Bg6 $2 {[%emt 0:03:07]} (32... gxf4 $17 {aiming for ...c6.} 33. gxf4 c6) 33. f5 $11 {[%emt 0:02:20]} Be8 {[%emt 0:00:34]} 34. d5 {[%emt 0:00:23]} Na6 {[%emt 0:02:07]} 35. Re3 {[%emt 0:00:37]} c6 {[%emt 0:00:16]} 36. Na3 {[%emt 0:02:35]} Qc7 {[%emt 0:00:18]} 37. Rb1 {[%emt 0:00:28]} Kg7 {[%emt 0:01:03]} 38. Kg2 {[%emt 0:00:27]} Bf7 {[%emt 0:00:33]} 39. Rc3 {[%emt 0:00:36]} Rc8 {[%emt 0:00:17]} 40. Rbc1 {[%emt 0:00:47]} Qb6 {[%emt 0:01:22]} 41. Nc2 {[%emt 0:30:21]} cxd5 {[%emt 0:31:16]} 42. exd5 {[%emt 0:00:35]} Rfe8 {[%emt 0:00:57]} 43. Qe3 {[%emt 0:00:30]} (43. Na3 {is more complex.} Qd4 44. Rd3 Qc5 45. Nb5) 43... Qc7 {[%emt 0:01:11][%cal Of7d5]} 44. Na3 {[%emt 0:00:37]} Qd7 {[%emt 0:01:00]} 45. Nb5 {[%emt 0:00:23]} Nc5 {[%emt 0:00:41]} 46. Rf1 {[%emt 0:00:41]} h5 {[%emt 0:00:41]} 47. Kh2 {[%emt 0:01:13]} Rh8 {[%emt 0:01:02]} 48. Kg2 {[%emt 0:00:21]} Qe7 {[%emt 0:00:57]} 49. Nd4 {[%emt 0:01:08]} (49. Qxg5+ $2 fxg5 50. f6+ Qxf6 51. Rxf6 Kxf6 $19) 49... exd4 {[%emt 0:04:40]} 50. Qxe7 {[%emt 0:00:02]} Rhe8 {[%emt 0:00:08] [#]} 51. Qxd6 {[%emt 0:00:55][%mdl 8192]} Rxe2+ $19 {[%emt 0:00:08] Black is clearly winning.} 52. Kf3 {[%emt 0:00:18] [#]} Rh2 {[%emt 0:00:52]} ({Not} 52... Ne4 53. Qb6 (53. Qd7 Nxc3 54. Qxc8 d3 $11) 53... Nxc3 54. Qxd4 $11) 53. Rcc1 {[%emt 0:00:58] [#]} Re8 $1 {[%emt 0:00:34] Weighted Error Value: White=0.32/Black=0.15 (very precise) .  Loses game:     	White=1     	---        Mistake:       	White=3     	Black=1      Inaccurate:     	White=6     	Black=8      OK:         	White=9     	Black=14     Best:        	White=3     	Black=3} 0-1

[Event "SixDays Budapest GM-B May 2024"]
[Site "Budapest"]
[Date "2024.05.18"]
[Round "4.4"]
[White "Lamard, Guillaume"]
[Black "Lu, Maximillian"]
[Result "1/2-1/2"]
[ECO "B92"]
[WhiteElo "2504"]
[BlackElo "2373"]
[Annotator "TA"]
[PlyCount "126"]
[EventDate "2024.05.15"]
[EventType "tourn"]
[EventCountry "HUN"]
[SourceTitle "playchess.com"]
[Source "ChessBase"]
[SourceQuality "1"]
[TimeControl "40/5400+30:1800+30"]

{[%evp 30,126,54,51,59,63,64,58,54,54,59,32,29,29,68,42,68,41,49,32,25,30,15,9,43,32,33,38,31,13,66,38,44,32,20,13,9,11,28,36,32,26,31,15,24,0,31,29,33,38,38,12,18,17,14,8,8,0,0,0,0,0,0,0,13,10,13,14,11,6,13,11,15,0,0,0,0,0,0,0,0,0,0,0,0,0,0,0,0,0,0,0,0,0,0,0,0,-8,-8]} 1. e4 {[%emt 0:00:03]} c5 {[%emt 0:08:35]} 2. Nf3 {[%emt 0:00:05]} d6 {[%emt 0:00:04]} 3. d4 {[%emt 0:00:14]} cxd4 {[%emt 0:00:04]} 4. Nxd4 {[%emt 0:00:04]} Nf6 {[%emt 0:00:07]} 5. Nc3 {[%emt 0:00:04]} a6 {[%emt 0:00:06]} 6. Be2 {[%emt 0:00:24]} e5 {[%emt 0:00:12]} 7. Nb3 {[%emt 0:00:12]} Be7 {[%emt 0:00:11]} 8. O-O {[%emt 0:00:10]} O-O {[%emt 0:00:06]} 9. Qd3 {[%emt 0:00:13]} Be6 {[%emt 0:01:44]} 10. Bd2 {[%emt 0:00:17] B92: Sicilian Najdorf: 6 Be2.} Nc6 {[%emt 0:06:36]} 11. Nd5 {[%emt 0:00:32]} Bxd5 {[%emt 0:04:15]} 12. exd5 {[%emt 0:00:08]} e4 {[%emt 0:00:04]} 13. Qe3 {[%emt 0:00:23]} Nxd5 {[%emt 0:01:25]} 14. Qxe4 {[%emt 0:00:08]} Nf6 {[%emt 0:00:07]} 15. Qf5 {[%emt 0:00:44]} Qc8 $146 {[%emt 0:03:23]} ({Predecessor:} 15... d5 16. Rad1 g6 17. Qh3 Qc7 18. Bd3 Rfe8 19. Rfe1 Rad8 20. Qf3 Nh5 21. g4 Ng7 {½-½ Vachier Lagrave,M (2758)-Giri,A (2776) Carlsen Inv KO rapid 2021 (1.23)}) 16. Qxc8 {[%emt 0:14:13]} Raxc8 {[%emt 0:00:10]} 17. c3 {[%emt 0:00:21]} Rfe8 {[%emt 0:05:40]} 18. Rad1 {[%emt 0:03:04]} d5 {[%emt 0:04:08]} 19. Rfe1 {[%emt 0:03:05]} h6 {[%emt 0:04:56]} 20. Bf4 {[%emt 0:03:51]} Bd8 {[%emt 0:06:13]} 21. Be3 {[%emt 0:09:06]} Bc7 {[%emt 0:05:31]} 22. h3 {[%emt 0:05:15]} Re7 {[%emt 0:00:57]} 23. Bc5 {[%emt 0:05:02]} Re6 {[%emt 0:01:53]} 24. Bf1 {[%emt 0:05:30]} Rce8 {[%emt 0:04:58]} 25. Rxe6 {[%emt 0:00:17]} fxe6 {[%emt 0:00:17]} 26. Be3 {[%emt 0:02:38]} Ne4 {[%emt 0:01:53]} 27. c4 {[%emt 0:05:44]} dxc4 {[%emt 0:08:01]} 28. Bxc4 {[%emt 0:00:10]} Be5 {[%emt 0:01:43]} 29. Bc1 {[%emt 0:10:59]} Nd6 {[%emt 0:04:02]} (29... Kf7 $11) 30. Bf1 {[%emt 0:02:31]} Rd8 {[%emt 0:00:31]} 31. Re1 {[%emt 0:02:36]} Kf7 {[%emt 0:00:31]} 32. Na5 {[%emt 0:01:12]} Nxa5 {[%emt 0:02:17]} 33. Rxe5 {[%emt 0:00:06]} Rc8 {[%emt 0:02:48]} 34. Re1 {[%emt 0:01:08]} Nf5 {[%emt 0:02:50]} 35. Bd2 {[%emt 0:02:14]} Nc6 {[%emt 0:00:32]} 36. Bc3 {[%emt 0:00:58]} Nfe7 {[%emt 0:00:33]} 37. Bd2 {[%emt 0:04:32]} Nd5 {[%emt 0:00:13]} 38. Rc1 {[%emt 0:00:15]} Nce7 {[%emt 0:00:38]} 39. Rxc8 {[%emt 0:00:14]} Nxc8 {[%emt 0:00:01]} 40. Bd3 {[%emt 0:00:42]} Nd6 {[%emt 0:00:18]} 41. g3 {[%emt 0:31:06]} Kf6 {[%emt 0:30:43]} 42. f4 {[%emt 0:02:57]} e5 {[%emt 0:01:09]} 43. fxe5+ {[%emt 0:04:04]} Kxe5 {[%emt 0:00:01]} 44. Kf1 {[%emt 0:00:15]} Ne4 {[%emt 0:02:55]} 45. Be1 {[%emt 0:00:28]} Kd4 {[%emt 0:00:57]} 46. Ke2 {[%emt 0:00:29]} g5 {[%emt 0:02:40]} 47. Bb1 {[%emt 0:00:37]} h5 {[%emt 0:04:21]} 48. Kf3 {[%emt 0:00:06]} Ndf6 {[%emt 0:01:40]} 49. Ba5 {[%emt 0:01:46]} Ke5 {[%emt 0:02:09]} 50. Bc7+ {[%emt 0:02:04]} Kd4 {[%emt 0:00:02]} 51. Ba5 {[%emt 0:01:33]} Ke5 {[%emt 0:00:01]} 52. g4 {[%emt 0:01:03]} b6 {[%emt 0:05:20]} 53. Be1 {[%emt 0:03:41]} hxg4+ {[%emt 0:01:02]} 54. hxg4 {[%emt 0:00:05]} Kd4 {[%emt 0:00:10]} 55. Bc2 {[%emt 0:00:29]} Nd7 {[%emt 0:02:11]} 56. Ke2 {[%emt 0:04:27]} (56. Bxe4 $5 Ne5+ $8 57. Ke2 Kxe4 58. Bd2 $17) 56... Ne5 {[%emt 0:01:55]} 57. Bxe4 {[%emt 0:01:11]} Kxe4 {[%emt 0:00:01]} 58. Bd2 {[%emt 0:00:06]} Nxg4 {[%emt 0:01:20]} 59. Bxg5 {[%emt 0:00:06]} Kd4 {[%emt 0:00:31]} 60. Kd2 {[%emt 0:00:26]} b5 {[%emt 0:00:18]} 61. Bd8 {[%emt 0:00:32]} Kc4 {[%emt 0:00:27]} 62. b3+ {[%emt 0:00:17]} Kd5 {[%emt 0:00:08]} 63. a4 {[%emt 0:00:44]} bxa4 {[%emt 0:00:38]} 1/2-1/2

[Event "SixDays Budapest GM-B May 2024"]
[Site "Budapest"]
[Date "2024.05.18"]
[Round "4.5"]
[White "Borgaonkar Akshay"]
[Black "Horvath, Adam"]
[Result "1-0"]
[ECO "B42"]
[WhiteElo "2374"]
[BlackElo "2448"]
[Annotator "TA"]
[PlyCount "93"]
[EventDate "2024.05.15"]
[EventType "tourn"]
[EventCountry "HUN"]
[SourceTitle "playchess.com"]
[Source "ChessBase"]
[SourceQuality "1"]
[TimeControl "40/5400+30:1800+30"]

{[%evp 19,93,29,25,14,23,0,0,0,0,0,0,0,0,0,16,0,0,0,17,15,15,0,0,0,0,0,0,0,0,-9,0,0,0,-32,0,-77,-30,-37,-32,-39,-24,-90,-30,-25,0,0,0,-25,-20,-27,-19,-25,0,0,0,0,31,24,197,201,177,172,292,290,303,0,169,69,144,118,756,688,773,773,758,735]} 1. e4 c5 {[%emt 0:07:35]} 2. Nf3 {[%emt 0:00:14]} e6 {[%emt 0:00:05]} 3. d4 {[%emt 0:00:05]} cxd4 {[%emt 0:00:06]} 4. Nxd4 {[%emt 0:00:04]} a6 {[%emt 0:00:05]} 5. Bd3 {[%emt 0:01:02]} Bc5 {[%emt 0:00:08]} 6. Nb3 {[%emt 0:00:08]} Ba7 {[%emt 0:00:05]} 7. Qe2 {[%emt 0:00:11]} Ne7 {[%emt 0:02:40] is cutting edge theory. B42: Sicilian: Kan Variation: 5 Bd3.} 8. Be3 {[%emt 0:00:41]} O-O {[%emt 0:02:40]} 9. Nc3 {[%emt 0:07:50]} b5 {[%emt 0:19:42]} 10. e5 {[%emt 0:23:47]} Nbc6 {[%emt 0:14:33]} 11. Bxa7 {[%emt 0:07:12]} Rxa7 {[%emt 0:00:18]} 12. O-O-O {[%emt 0:13:15]} Ng6 $146 {[%emt 0:09:41]} ({Predecessor:} 12... b4 13. Na4 Nd5 14. g3 f6 15. exf6 Qxf6 16. f4 Rc7 17. Nac5 Nd4 18. Bxh7+ Kxh7 19. Rxd4 {1-0 Avila Pavas,S (2499)-Smirin,I (2595) FIDE World Cup 2023 (1.5)}) 13. Bxg6 {[%emt 0:08:25]} Qg5+ {[%emt 0:00:13]} 14. Qd2 {[%emt 0:00:54]} Qxd2+ $1 {[%emt 0:09:02]} 15. Rxd2 {[%emt 0:00:07]} fxg6 {[%emt 0:00:06]} 16. Re1 {[%emt 0:00:48]} Rf5 {[%emt 0:00:28]} 17. Nc5 {[%emt 0:07:15]} Rc7 {[%emt 0:08:13]} 18. Nd3 $1 {[%emt 0:00:25]} g5 {[%emt 0:01:38]} 19. f3 {[%emt 0:02:22]} Bb7 {[%emt 0:07:31]} 20. Nd1 {[%emt 0:02:59]} Ne7 {[%emt 0:01:09]} 21. Ne3 {[%emt 0:01:50]} Rf8 {[%emt 0:00:07]} 22. a3 {[%emt 0:04:49]} h5 {[%emt 0:02:23]} 23. h3 {[%emt 0:02:20]} Kh7 {[%emt 0:00:15]} 24. b4 {[%emt 0:01:16]} Ng6 {[%emt 0:02:36]} 25. Nc5 {[%emt 0:01:37]} Bc6 {[%emt 0:02:21]} (25... Nxe5 $6 26. Nf1 Nc4 27. Rxd7 Rxd7 28. Nxd7 $16) 26. Nf1 {[%emt 0:02:48]} a5 {[%emt 0:00:51]} 27. Rd4 {[%emt 0:02:45]} (27. bxa5 $11 {remains equal.} Ra7 28. Nb3 (28. a6 Rc8 $11)) 27... Ra8 {[%emt 0:00:31]} ({Black should play} 27... axb4 $17 28. axb4 Ra7) 28. Kd2 {[%emt 0:00:42]} axb4 {[%emt 0:01:07]} 29. axb4 {[%emt 0:00:01]} Ra2 {[%emt 0:01:04]} 30. Ng3 {[%emt 0:02:01]} (30. Nd3 $11 {keeps the balance.}) 30... Kh6 {[%emt 0:00:05]} (30... Nf4 $17 31. Rxf4 gxf4 32. Nxh5 g5) 31. Nge4 $11 {[%emt 0:00:26]} Nh4 {[%emt 0:03:14]} 32. Nd6 {[%emt 0:01:09]} Kg6 {[%emt 0:01:58]} 33. Re2 {[%emt 0:00:40]} Ra1 {[%emt 0:00:38]} 34. Kc3 {[%emt 0:02:22]} Rg1 {[%emt 0:00:44]} 35. Rdd2 {[%emt 0:00:07]} Ra7 {[%emt 0:01:24]} 36. Nc8 {[%emt 0:00:18]} Ra3+ {[%emt 0:00:24]} 37. Kb2 {[%emt 0:00:05]} Raa1 {[%emt 0:01:15]} 38. Ne7+ {[%emt 0:01:00]} Kh6 $2 {[%emt 0:01:35]} (38... Kf7 $6 39. Nxc6 Rgb1+ 40. Kc3 Ra3+ 41. Nb3 dxc6 42. Kd4 $14) (38... Kh7 $1 $11) 39. Nxc6 $1 $18 {[%emt 0:00:10]} (39. Nxd7 $2 Rgb1+ 40. Kc3 Ra3+ 41. Kd4 Bxd7 $19) 39... dxc6 {[%emt 0:00:15]} 40. Rd6 {[%emt 0:01:26]} (40. Nxe6 Nf5 41. Kc3 Ra3+ 42. Kb2 Rga1 $11) 40... Nxg2 {[%emt 0:00:21]} (40... Nf5 $142) 41. Nxe6 $18 {[%emt 0:30:36]} (41. Rxc6 Nf4 42. Rd2 Kh7 $19 (42... Nxh3 43. Rxe6+ Kh7 44. Re7 $11)) (41. Rxe6+ g6 42. Rxg2 (42. Rxc6 Nf4 $11) 42... Rab1+ 43. Ka2 Ra1+ 44. Kb2 Rab1+ 45. Ka2 Ra1+ 46. Kb2 $11) 41... g6 {[%emt 0:30:06] [#]} 42. Rd7 $2 {[%emt 0:01:54]} ({And not} 42. Rxc6 Nh4 $11) (42. Rd8 $1 $18 {[%cal Rd8h8]} Kh7 (42... Rgb1+ $2 43. Kc3 $18) 43. Nxg5+ Kh6 44. Ne6) 42... Nh4 $2 {[%emt 0:01:03] [#]} (42... Rgb1+ $1 $11 43. Kc3 Ra3+ 44. Kd2 Nh4) 43. Nd4 {[%emt 0:01:31]} ({Only move:} 43. Rd8 $1 $18 {[%cal Rd8h8]} Rgb1+ 44. Kc3 Ra3+ (44... Nxf3 45. Rh8#) 45. Kd4 Nxf3+ (45... Rxb4+ $2 {too greedy.} 46. Kc5 $18) 46. Kc5) 43... Rgb1+ {[%emt 0:01:11]} (43... Rge1 $14) 44. Kc3 $16 {[%emt 0:00:01]} Nxf3 $2 {[%emt 0:00:15][%mdl 8192]} (44... Re1 $16 45. Rxe1 Rxe1) 45. Nxf3 $18 {[%emt 0:00:23]} Ra3+ {[%emt 0:00:04]} 46. Kd2 {[%emt 0:00:09]} Rxf3 {[%emt 0:00:04]} 47. e6 {[%emt 0:00:04]} 1-0